Workbook

Sheet Sch 1 P & G's
J1: Schedule 1
A2: SCHEDULE 1 : PRELIMINARY & GENERAL | J2: Preliminary & General
A3: Item | B3: Payment | E3: Description | F3: Unit | G3: LIC | H3: Qty | I3: Rate | J3: Amount
A4: No. | B4: Ref. | I4: ( R ) | J4: ( R )
A5: 1 | B5: SANS
B6: 1200A | C6: PRELIMINARY & GENERAL
A8: A1.1 | B8: 8.3 | C8: FIXED-CHARGE ITEMS
A10: A1.1.1 | B10: 8.3.1 | C10: Contractual Requirements | F10: Sum | H10: 1 | J10: =IF(I10="","",ROUND(I10*H10,2)) -> 
A12: A1.1.2 | B12: 8.3.2 | C12: Establish Facilities on Site
B14: 8.3.2.1 | C14: i) | D14: Facilities for Engineer
B16: PS7.2 | D16: a) | E16: Office Equipment for Engineer as and when required | F16: Prov Sum | H16: 1 | I16: 50,000.00 | J16: =IF(I16="","",ROUND(I16*H16,2)) -> 50,000.00
B18: PSAB1 | D18: b) | E18: Nameboards | F18: no. | H18: 2 | J18: =IF(I18="","",ROUND(I18*H18,2)) -> 
A20: A1.3 | B20: 8.3.2.3 | C20: ii) | D20: Facilities for Contractor
B21: PS6
A22: A1.3.1 | D22: a) | E22: Offices and storage sheds | F22: Sum | H22: 1 | J22: =IF(I22="","",ROUND(I22*H22,2)) -> 
A23: A1.3.2 | D23: b) | E23: Workshops | F23: Sum | H23: 1
A24: A1.3.3 | D24: c) | E24: Laboratories | F24: Sum | H24: 1
A25: A1.3.4 | D25: d) | E25: Living accommodation | F25: Sum | H25: 1
A26: A1.3.5 | D26: e) | E26: Ablution and latrine facilities | F26: Sum | H26: 1
A27: A1.3.6 | D27: f) | E27: Tools and equipment | F27: Sum | H27: 1
A28: A1.3.7 | D28: g) | E28: Water supplies, electric power and communications | F28: Sum | H28: 1
A29: A1.3.8 | D29: h) | E29: Dealing with water (Subclause 5.5) | F29: Sum | H29: 1
A30: A1.3.9 | D30: i) | E30: Access (Subclause 5.8) | F30: Sum | H30: 1
A31: A1.3.10 | D31: j) | E31: Plant | F31: Sum | H31: 1
A32: A1.4 | B32: 8.3.3 | C32: Other fixed-charge obligations | F32: Sum | H32: 1 | J32: =IF(I32="","",ROUND(I32*H32,2)) -> 
A34: A1.5 | B34: 8.3.4 | C34: Removeof site establishment on completion | F34: Sum | H34: 1 | J34: =IF(I34="","",ROUND(I34*H34,2)) -> 
A36: A1.6 | B36: SPEC AO | C36: Health and safety
A38: A1.6.1 | B38: 8.2.1 | C38: General safety obligations | F38: Sum | H38: 1 | J38: =H38*I38 -> 0
A39: A1.6.2 | B39: 8.2.2 | C39: Risk assessment | F39: Sum | H39: 1 | J39: =H39*I39 -> 0
A40: A1.6.3 | B40: 8.2.3 | C40: Health and safety plan | F40: Sum | H40: 1 | J40: 0
A41: A1.6.4 | B41: 8.2.5 | C41: Training | F41: Sum | H41: 1 | J41: 0
A42: A1.6.5 | B42: 8.2.6 | C42: Medical assessment of employees | F42: Prov Sum | H42: 1 | I42: =500*45 -> 22,500.00 | J42: 22,500.00
A44: A2 | B44: 8.4 | C44: TIME-RELATED ITEMS
A46: A2.1 | B46: 8.4.1 | C46: Contractual requirements | F46: Sum | H46: 1 | J46: =IF(I46="","",ROUND(I46*H46,2)) -> 
C48: Operate and maintain facilities on the site:
A50: A1.2 | B50: 8.3.2.3 | C50: i) | D50: Facilities for Engineer
J52: =IF(I52="","",ROUND(I52*H52,2)) -> 
D53: a) | E53: Operate and maintain facilities on site for the Engineer | F53: Prov Sum | H53: 1 | I53: 25,000.00 | J53: 25,000.00
E54: and the Contractor
B55: PSA8.2 | C55: Testing Layerworks, bedding, blanket and backfilling | F55: Prov Sum | H55: 1 | I55: 180,000.00 | J55: =IF(I55="","",ROUND(I55*H55,2)) -> 180,000.00
A56: Carried Forward
A62: Brought Forward | J62: =J56 -> 0
A63: A1.3 | B63: 8.3.2.3 | C63: Facilities for Contractor
A65: A1.3.1 | C65: a) | D65: Offices and storage sheds | F65: Sum | H65: 1 | J65: =IF(I65="","",ROUND(I65*H65,2)) -> 
A66: A1.3.2 | C66: b) | D66: Workshops | F66: Sum | H66: 1
A67: A1.3.3 | C67: c) | D67: Laboratories | F67: Sum | H67: 1
A68: A1.3.4 | C68: d) | D68: Living accommodation | F68: Sum | H68: 1
A69: A1.3.5 | C69: e) | D69: Ablution and latrine facilities | F69: Sum | H69: 1
A70: A1.3.6 | C70: f) | D70: Tools and equipment | F70: Sum | H70: 1
A71: A1.3.7 | C71: g) | D71: Water supplies, electric power and communications | F71: Sum | H71: 1
A72: A1.3.8 | C72: h) | D72: Dealing with water (Subclause 5.5) | F72: Sum | H72: 1
A73: A1.3.9 | C73: i) | D73: Access (Subclause 5.8) | F73: Sum | H73: 1
A74: A1.3.10 | C74: j) | D74: Plant | F74: Sum | H74: 1
A76: A2.4 | B76: 8.4.3 | C76: Supervision for duration of the construction | F76: Sum | H76: 1 | J76: =IF(I76="","",ROUND(I76*H76,2)) -> 
A78: A2.5 | B78: 8.4.4 | C78: Company and head office overhead costs | F78: Sum | H78: 1 | J78: =IF(I78="","",ROUND(I78*H78,2)) -> 
A80: A2.6 | B80: 8.4.5 | C80: Other time related obligations | F80: Sum | H80: 1 | J80: =IF(I80="","",ROUND(I80*H80,2)) -> 
A82: A2.7 | B82: SPEC AO | C82: Health and safety:
A84: A2.7.1 | B84: 8.2.1 | C84: General safety obligations | F84: Sum | H84: 1 | J84: =I84*H84 -> 0
A86: A2.7.2 | B86: 8.2.3 | C86: Health and safety plan | F86: Sum | H86: 1 | J86: =I86*H86 -> 0
A88: A2.7.3 | B88: 8.2.4 | C88: Construction Safety Officer and other appointments
C89: a) | D89: Community Laison Officer (CLO) Salary | F89: Prov | H89: 1 | I89: =5500*6 -> 33,000.00 | J89: =H89*I89 -> 33,000.00
C91: b) | D91: Community involvement, PSC payment | F91: Prov Sum | H91: 1 | I91: =1000*4*6 -> 24,000.00 | J91: =I91 -> 24,000.00
C93: c) | D93: Charges and profit on item 1.3.7 (a) and (b) | F93: % | I93: =J89+J91 -> 57,000.00
A98: Carried Forward to Summary

Sheet Sch 2 Day Works
J1: Schedule 2
A2: SCHEDULE 2 : DAY WORKS
A4: Item | B4: Payment | E4: Description | F4: Unit | G4: LIC | H4: Qty | I4: Rate | J4: Amount
A5: No. | B5: Ref. | I5: ( R ) | J5: ( R )
A6: 2 | B6: SANS
B7: 1200A | C7: DAY WORKS
A9: 2.1 | B9: 8.7 | C9: LABOUR
A11: 2.1.1 | C11: a) Unskilled Labourers | F11: hrs | H11: 1 | J11: Rate Only
A13: 2.1.2 | C13: b) Semi Skilled Labourers | F13: hrs | H13: 1 | J13: Rate Only
A15: 2.1.3 | C15: c) Skilled Labourers | F15: hrs | H15: 1 | J15: Rate Only
A17: 2.1.4 | C17: d) Carpenter | F17: hrs | H17: 1 | J17: Rate Only
A19: 2.1.5 | C19: e) Clerk | F19: hrs | H19: 1 | J19: Rate Only
A21: 2.1.6 | C21: f) Artisans | F21: hrs | H21: 1 | J21: Rate Only
A23: 2.1.7 | C23: g) Foreman | F23: hrs | H23: 1 | J23: Rate Only
A25: 2.1.8 | C25: h) Steel fixer | F25: hrs | H25: 1 | J25: Rate Only
A27: 2.1.9 | C27: i) Bricklayer or Plasterer | F27: hrs | H27: 1 | J27: Rate Only
A29: 2.1.10 | C29: j) Welder | F29: hrs | H29: 1 | J29: Rate Only
A31: 2.2 | C31: PLANT
C33: Tenderers to insert the hire rate at which each item will be charged, which is to cover all relevant costs of plant hire, including operating crew, bringing to site and removal
A35: 2.2.1 | C35: Bulldozer (D6 or similar equivalent):
C37: a) Working | F37: hrs | H37: 1 | J37: Rate Only
C39: b) Standing | F39: hrs | H39: 1 | J39: Rate Only
A41: 2.2.2 | C41: Grader (120G or similar equivalent)
C43: a) Working | F43: hrs | H43: 1 | J43: Rate Only
C45: b) Standing | F45: hrs | H45: 1 | J45: Rate Only
A49: Carried Forward
J54: C2.2.4
A55: Brought Forward | J55: =J49 -> 0.00
A57: 2.2.3 | C57: TLB
C59: a) Working | F59: hrs | H59: 1 | J59: Rate Only
C61: b) Standing | F61: hrs | H61: 1 | J61: Rate Only
A63: 2.2.4 | C63: Trucks (6m³ tipper)
C65: a) Working | F65: hrs | H65: 1 | J65: Rate Only
C67: b) Standing | F67: hrs | H67: 1 | J67: Rate Only
A69: 2.2.5 | C69: Soil compactors (D72Y or similar equivalent)
C71: a) Working | F71: hrs | H71: 1 | J71: Rate Only
C73: b) Standing | F73: hrs | H73: 1 | J73: Rate Only
A75: 2.2.6 | C75: Concrete mixer (250 litre)
C77: a) Working | F77: hrs | H77: 1 | J77: Rate Only
C79: b) Standing | F79: hrs | H79: 1 | J79: Rate Only
A81: 2.2.7 | C81: Concrete vibrators (Drive unit plus accessories)
C83: a) Working | F83: hrs | H83: 1 | J83: Rate Only
C85: b) Standing | F85: hrs | H85: 1 | J85: Rate Only
A88: 2.2.8 | C88: Excavators
F89: hrs | H89: 1 | J89: Rate Only
C90: a) Working
F91: hrs | H91: 1 | J91: Rate Only
C92: b) Standing
A98: Carried Forward
J103: C2.2.5
A104: Brought Forward | J104: =J98 -> 0.00
A106: 2.2.9 | C106: Water tanker (10 000 l)
C108: a) Working | F108: hrs | H108: 1 | J108: Rate Only
C110: b) Standing | F110: hrs | H110: 1 | J110: Rate Only
A112: 2.2.10 | C112: LDV
C114: a) Working | F114: hrs | H114: 1 | J114: Rate Only
C116: b) Standing | F116: hrs | H116: 1 | J116: Rate Only
A118: 2.2.11 | C118: Dumper (1.4m³)
C120: a) Working | F120: hrs | H120: 1 | J120: Rate Only
C122: b) Standing | F122: hrs | H122: 1 | J122: Rate Only
A149: TOTAL SCHEDULE 2 CARRIED FORWARD TO SUMMARY

Sheet Sch 3 Earthworks
D1: Schedule 3
A2: SCHEDULE 3 : EARTHWORKS (ROADS, SUBGRADE)
A4: Item | B4: Payment | C4: Description | D4: Unit | E4: LIC | F4: Qty | G4: Rate | H4: Amount
A5: No. | B5: Reference | H5: (R)
B7: SANS | C7: SECTION DM: EARTHWORKS (ROADS, SUBGRADE)
B8: 1200DM
B9: 8.3.1 | C9: SITE CLEARANCE
A11: DM1 | C11: Clear vegetation, rubble and trees up to 1 m of girth and other obstructions pointed | D11: m2 | F11: =1600*5 -> 8000 | H11: =IF(G11="","",ROUND(G11*F11,2)) -> 
C12: out by the Engineer's representative in the site book to a width of 5 m on either
C14: Treatment of road-bed
A16: DM2 | B16: 8.3.3 | C16: Road-bed preparation and compaction of material
A18: DM2.2 | C18: Compact to 93 % of Mod. AASHTO max. density | D18: m3 | F18: =1500*7*0.15*1.65 -> 2598.75
A20: DM4.2 | C20: Rockfill, process and compact | D20: m3 | F20: =300*0.15*7*0.5 -> 157.5
A22: DM5 | B22: 8.3.4 | C22: Borrow to fill
A24: DM5.1 | C24: Compact to 93% of Mod. AASHTO max. density | D24: m3 | F24: =300*0.2*0.7*1.5 -> 63
A26: DM8 | B26: 8.3.7 | C26: Cut to spoil or stockpile from
A28: DM8.1 | C28: Soft excavation | D28: m3 | F28: =1200*7*0.5 -> 4200
A30: DM8.2 | C30: Intermediate excavation (Milling to stockpile) | D30: m3 | F30: =1200*7*0.15*0.5 -> 630
A32: DM9 | B32: 8.3.8 | C32: Removal of oversize material | D32: m3 | F32: 1 | H32: Rate Only
A34: DM11 | B34: SDDM... | C34: Variations in compactive effort:
A36: DM11.1 | C36: Vibratory roller | D36: m2/ pass | F36: =1600*7 -> 11200
A38: DM11.2 | C38: Impact roller | D38: m2/ pass | F38: 1 | H38: Rate Only
C39: Sundries
A41: DM12 | B41: 8.3.10 | C41: Materials bladed to windrow | D41: m3
A43: DM13 | B43: 8.3.11 | C43: Extra-over Items DM1.2, DM4, DM5 or DM6 for temporary stockpiling of material | D43: m3 | F43: =F30+F28 -> 4830
A45: DM14 | B45: 8.3.12 | C45: Overhaul:
A47: DM14.1 | C47: Extra-over Items DM 5.1. for hauling material:
A49: DM14.1.1 | C49: in excess of the freehaul of 0,5 km but not more than 1,0 km | D49: m3 | F49: =F24 -> 63
A51: DM14.1.2 | C51: in excess of the haul of 1,0 km | D51: m3.km | F51: =F49*10 -> 630
B53: 8.3.13 | C53: Surface finishes
A55: DM15 | C55: Topsoiling | D55: m2 | F55: =1600*5 -> 8000 | H55: Rate Only
A57: DM19 | B57: 8.3.15 | C57: Mitre banks and channels | D57: m3 | F57: =(300/50+6+1200/50)*0.5*0.5 -> 9 | H57: Rate Only
A58: Carried to Summary

Sheet Sch 4 Subbase
D1: Schedule 4
A2: SCHEDULE 4 : SUBBASE
A4: Item | B4: Payment | C4: Description | D4: Unit | E4: LIC | F4: Qty | G4: Rate | H4: Amount
A5: No. | B5: Reference | H5: (R)
B7: SANS
B8: 1200ME | C8: SUBBASE
A10: ME | B10: 8.3.1 | C10: Construct the subbase course/shoulders/gravel wearing course with material | D10: m3 | F10: 1 | H10: Rate Only
C11: excavated in materials from borrow pit (95% Mod AASHTO , 150mm Thickness)
A13: ME | B13: 8.3.2 | C13: Construct the subbase course/shoulders/gravel wearing course with material | D13: m3 | F13: 1 | H13: Rate Only
C14: excavated in materials from desiginated excavations (95% Mod AASHTO,
C15: 150mm Thickness)
A16: ME | B16: 8.3.3 | C16: Construct the subbase course/shoulders/gravel wearing course with material | D16: m3 | F16: =1500*7.6*0.15*1.5 -> 2565 | H16: =F16*G16 -> 0
C17: excavated in materials from Commercial Sources ( 95% Mod AASHTO,
C18: 150mm Thickness)
B20: 8.3.4 | C20: Extra over for Item 8.3.1 for class of excavation
C22: a) Intermediate excavation | D22: m3 | F22: 1 | H22: Rate Only
C23: b) Hard rock excavation | D23: m3 | F23: 1 | H23: Rate Only
B25: 8.3.5 | C25: Process subbase material by the following processes
C26: a) Screening | D26: m3 | F26: 1 | H26: Rate Only
C27: b)Heavy grid rolling | D27: m3 | F27: =1500*7.6*0.15*1.5 -> 2565 | H27: =F27*G27 -> 0
B29: 8.3.9 | C29: Overhaul (haul exceeding 2 km) (provisional) | D29: m3.km | F29: =1500*7.6*0.15*1.5*5 -> 12825 | H29: =F29*G29 -> 0
B31: 8.3.10 | C31: Overburden | D31: m3 | F31: 1 | H31: Rate Only
A55: Carried to Summary

Sheet Sch 5 Base
D1: Schedule 5
A2: SCHEDULE 5 : BASE
A4: Item | B4: Payment | C4: Description | D4: Unit | E4: LIC | F4: Qty | G4: Rate | H4: Amount
A5: No. | B5: Reference | H5: (R)
B8: SANS
B9: 1200MF | C9: BASE
A11: MF | B11: 8.3.1 | C11: Construct base with gravel material from borrow pits | D11: m3 | F11: =1500*7.3*0.15*1.5 -> 2463.75 | H11: Rate Only
C12: in materials from borrow pit ( 97% Mod AASHTO Max Density, 150mm Thickness)
A14: MF | B14: 8.3.2 | C14: Construct base with material from designated excavations
C15: a) Excavate from designated excavations, select , and stockpile for base | D15: m3 | F15: =1500*7.3*0.15*1.5 -> 2463.75 | H15: Rate Only
C16: b) Construct the base with material from the stockpile and compact to modified | D16: m3 | F16: =1500*7.3*0.15*1.5 -> 2463.75 | H16: Rate Only
A18: MF | B18: 8.3.3 | C18: Construct base with material from commercial sources
C19: Compact material to 97% Mod AASHTO Max Density, 150mm Thickness)
C21: a) Gravel material | D21: m3 | F21: =1500*7.3*0.15*1.5 -> 2463.75 | H21: =F21*G21 -> 0
C22: b) Graded crushed stone | D22: m3 | F22: =1500*7.3*0.15*1.5 -> 2463.75 | H22: Rate Only
C23: c) Graded crushed stone and soil fines | D23: m3 | F23: 2463.75
B25: 8.3.4 | C25: Extra over for Item 8.3.1 for class of excavation
C27: a) Intermediate excavation | D27: m3 | F27: =F21*0.7 -> 1724.625 | H27: Rate Only
C28: b) Hard rock excavation | D28: m3 | F28: =F21*0.3 -> 739.125 | H28: Rate Only
B30: 8.3.5 | C30: Process base material by the following processes ( applicable to 8.3.1 or 8.3.2 /both)
C31: a) Screening | D31: m3 | F31: 1 | H31: Rate Only
C32: b)Heavy grid rolling | D32: m3 | F32: 1 | H32: Rate Only
B34: 8.3.8 | C34: Stabilizing agent
C35: b) Portland cement | D35: t | F35: =F22*2300*0.03/1000 -> 170 | H35: =F35*G35 -> 0
B37: 8.3.9 | C37: Overhaul (haul exceeding 2 km) (provisional) | D37: m3.km | F37: =F21*5 -> 12318.75 | H37: =F37*G37 -> 0
B39: 8.3.10 | C39: Borrow Pits
C40: a) Opening up | D40: sum | H40: Rate Only
C41: b) Rehabilitation | D41: sum | H41: Rate Only
A57: Carried to Summary

Sheet Sch 6 Paving
D1: Schedule 6
A2: SCHEDULE 6 : SEGMENTED PAVING
A4: Item | B4: Payment | C4: Description | D4: Unit | E4: LIC | F4: Qty | G4: Rate | H4: Amount
A5: No. | B5: Reference | H5: (R)
B7: SANS
B8: 1200MJ | C8: SEGMENTED PAVING
B10: 8.2.1 | C10: Provision of Edge Restraints ( 200mmx 100mm Edge Beam) | D10: m | E10: LIC | F10: 50
B12: 8.2.2 | C12: Construction of Paving Complete ( 80mm Interlocking paving Blocks, on 20mm bedding Sand | D12: m2 | E12: LIC | F12: =1600*7*1.15 -> 12880
B14: 8.2.3 | C14: Cutting Units to Fit Edge Restraints | D14: m | E14: LIC | F14: =F10 -> 50
B16: 8.2.4 | C16: Rolling to Locked-up Condition | D16: m2 | E16: LIC | F16: =F12 -> 12880
A54: Carried to Summary

Sheet Sch 7 Concrete Works
D1: Schedule 5
A2: SCHEDULE 7 : CONCRETE (SMALL WORKS)
A4: Item | B4: Payment | C4: Description | D4: Unit | E4: LIC | F4: Qty | G4: Rate | H4: Amount
A5: No. | B5: Reference | H5: (R)
B7: SANS
B8: 1200 GA | C8: SECTION GA: CONCRETE (SMALL WORKS)
A10: GA1 | B10: 8.2 | C10: Formwork
A12: GA1.1 | B12: 8.2.1 | C12: Rough | D12: m2 | F12: =(7+7+10+10)*0.2 -> 6.8
A14: GA1.3 | B14: 8.2.3 | C14: Vertical narrow widths (up to 1150mm wide) | D14: m | F14: 1 | H14: Rate Only
A16: GA2 | B16: 8.1.2 | C16: Reinforcement
A18: GA2.2.9 | B18: 8.3.2 | C18: High-tensile welded mesh of mass 6.17 kg/m2 | D18: m2 | F18: =15*7 -> 105
A20: GA3 | B20: 8.4 | C20: Concrete
A22: GA3.2 | B22: 8.4.2 | C22: Blinding layer(15 Mpa/10 Concrete) | D22: m2 | E22: LIC | F22: =7*15 -> 105
A24: GA3.3 | B24: 8.4.3 | C24: Strength concrete, Grade 25 Mpa/10 | D24: m3 | F24: 70
E25: LIC
A26: GA3.4 | B26: 8.4.4 | C26: Unformed surface finishes
A28: GA3.4.1 | C28: Wood-floated | D28: m2 | F28: =F22 -> 105
A30: GA3.5 | B30: 8.5 | C30: Joints
A32: GA3.5.1 | C32: Type A | D32: m | F32: 3
A34: GA3.5.2 | C34: Type B | D34: m | F34: 3 | H34: Rate Only
A36: GA3.7 | B36: 8.7 | C36: Grouting | D36: m3 | F36: 1
A53: Carried to Summary

Sheet Sch 8 Kerbing & Channelling
D1: Schedule 8
A2: SCHEDULE 8 : Kerbing & channeling
A4: Item | B4: Payment | C4: Description | D4: Unit | E4: LIC | F4: Qty | G4: Rate | H4: Amount
A5: No. | B5: Reference | H5: (R)
B7: SANS
B8: 1200MK | C8: KERBING AND CHANNELLING
B10: 8.2.1 | C10: Concrete Kerbing ( Figure 8) | D10: m | E10: LIC | F10: =1200*3+300*2-F12 -> 4000
B12: 8.2.4 | C12: Depressed Kerbs | D12: m | E12: LIC | F12: =10*20 -> 200
B14: 8.2.7 | C14: Trimming of Excavations for Concrete-Lined Open Drains in
C15: a) Soft material | D15: m2 | E15: LIC | F15: =300*2.5 -> 750 | H15: =F15*G15 -> 0
C16: b) Intermediate material | D16: m2 | E16: LIC | F16: =1500*2.5 -> 3750 | H16: Rate Only
B18: 8.2.8 | C18: Cast-In-situ Concrete Lining to Open Drains (25MPa/10) | D18: m3 | E18: LIC | F18: =(5*0.5*0.2)*1500/50 -> 15
B20: 8.2.9 | C20: Formwork to Cast-In-Situ Concrete Lining of Open Drains ( Smooth finish)
C21: a) To sides with formwork on the internal face only | D21: m2 | E21: LIC | F21: =(2*5*0.2)*1500/50 -> 60
C22: c) To ends of slabs | D22: m2 | E22: LIC | F22: =(1500/50)*0.2 -> 6
B24: 8.2.10 | C24: Sealed Joints in Concrete Lining of Open Drains | D24: No. | E24: LIC | F24: =(1500/50)*5/5.5 -> 27
B26: 8.2.12 | C26: Steel Reinforcement (Mesh Ref 617) | D26: t | E26: LIC | F26: =F21*6.17/1000 -> 0.3702
A56: Carried to Summary | H56: =SUM(H5:H54) -> 0

Sheet Sch 9 Ancillary Road Work
A2: SCHEDULE 5: ANCILLARY ROAD WORK | G2: Ancillary Road Work
A4: Item | B4: Payment | C4: Description | D4: Unit | E4: LIC | F4: Qty | G4: Rate | H4: Amount
A5: No. | B5: Reference | H5: (R)
B8: SANS
B9: 1200MM | C9: Ancillary roadworks
B11: 8.2.5 | C11: Reflector Plates (Danger Plate) | D11: No. | F11: =4 -> 4.00 | H11: Rate Only
B13: 8.3.3 | C13: Sign supports
C14: a) structural steel | D14: t | F14: 0.1 | H14: Rate Only
C15: b) Steel Tubing ( Galvanised) | D15: t | E15: LIC | F15: 0.2
C16: c) Timber (50mm Diamter, gampole) | D16: m | E16: LIC | F16: =F18*3 -> 12
B18: 8.3.6 | C18: Statutory Signs ( Stop Sign) | D18: No. | F18: 4
B20: 8.4 | C20: Road Markings (Stop Sign) | D20: No. | F20: 4
B22: 8.4.1 | C22: Non-reflectorized Paint Applied at Nominal Rate of 0.42 l/m2
C24: a) White lines (broken or unbroken) (100mm thick) | D24: km | F24: 1.5
C25: b) Yellow lines (broken or unbroken) (150mm thick) | D25: km | H25: Rate Only
C26: c) White characters and symbols | D26: m2 | H26: Rate Only
C27: d) Yellow characters and symbols | D27: m2 | H27: Rate Only
B29: 8.4.4 | C29: Setting out and Premarking
C30: a) Lines | D30: km | F30: 1.5
C31: b Special Markings | D31: No. | F31: 2 | H31: Rate Only
B33: 8.5 | C33: Brickwork (FBX 14Mpa, 230mm) | D33: m2 | F33: 15
A61: Carried to Summary

Sheet Summary
B4: BILL OF QUANTITIES
B6: Summary
A10: Schedule No. | B10: Description | C10: Amount ( R )
A11: 1 | B11: Preliminary and General
A12: 2 | B12: Day Works
A13: 3 | B13: Earthworks (Subgrade)
A14: 4 | B14: Subbase
A15: 5 | B15: Base
A16: 6 | B16: Segmented Paving
A17: 7 | B17: Concrete (Small Works)
A18: 8 | B18: Kerbing & Channelling
A19: 9 | B19: Ancillary Road Work
A20: SUB-TOTAL A
A21: 5% CONTIGENCIES (ON SUB-TOTAL A)
A22: SUB TOTAL B (SUB-TOTAL A + 5% CONTIGENCIES)
A23: SUB TOTAL C (SUBTOTAL B)
A24: 15% VAT (ON SUB-TOTAL B)
A25: TOTAL
C48: C2.2.15
